Cogmind - Beta 14 @@@ ROGUE MODE // 2024.08.16 @ 23:31:52 Player: human Result: Smashed by cave-in Performance ------------- Evolutions (0) 0 Regions Visited (1) 200 Robots Destroyed (11) 55 Value Destroyed (284) 284 Prototype IDs (2) 40 Alien Tech Used (0) 0 Bonus (0) 0 TOTAL SCORE: 579 Bonus ------- None Cogmind --------- Core Integrity 0/250 Matter 300/300 Energy 199/250 System Corruption 5% Temperature Warm (121) Movement Hovering (120) Ox1 Location -10/Materials Parts ------- > --- POWER (1) -------- Ion Engine > --- PROPULSION (2) --- Hover Unit > --- UTILITY (2) ------ Small Storage Unit > --- WEAPON (2) ------- (None) > --- INVENTORY (8) ---- Aluminum Leg Aluminum Leg Medium Laser Medium Laser Grenade Launcher Peak State ------------ > --- POWER ------------ Light Ion Engine > --- PROPULSION ------- Wheel Wheel > --- UTILITY ---------- Small Storage Unit > --- WEAPON ----------- Medium Laser Medium Laser > --- INVENTORY -------- Aluminum Leg Aluminum Leg [Rating: 6] Favorites ----------- Power Ion Engine Engine Ion Engine Propulsion Wheel Wheel Wheel Hover Unit Hover Unit Flight Unit Flight Unit Utility Small Storage Unit Storage Small Storage Unit Weapon Medium Laser Energy Gun Medium Laser Special Weapon Mining Laser Special Melee Weapon Datajack Build | -11 -10 ------- Run | Yrd Mat Slots Evolved . | . . Power . | . . Propulsion . | . . Utility . | . . Weapon . | . . Parts Attached 16 | 6 10 Power 2 | 1 1 Engine 2 | 1 1 Core . | . . Reactor . | . . Propulsion 7 | 2 5 Treads . | . . Leg . | . . Wheel 3 | 2 1 Hover 2 | . 2 Flight 2 | . 2 Utility 1 | 1 . Device . | . . Storage 1 | 1 . Processor . | . . Hackware . | . . Protection . | . . Artifact . | . . Weapon 6 | 2 4 Energy Gun 3 | 2 1 Energy Cannon . | . . Ballistic Gun . | . . Ballistic Cannon . | . . Launcher . | . . Special Weapon 2 | . 2 Impact Weapon . | . . Slashing Weapon . | . . Piercing Weapon . | . . Special Melee Weapon 1 | . 1 Unidentified Prototypes . | . . Parts Lost 6 | . 6 Power 1 | . 1 Propulsion 3 | . 3 Utility . | . . Weapon 2 | . 2 Highest Loss Streak 3 | . 3 To Critical Strikes . | . . Average Slot Usage (%) 81 | . 81 Engine 12 | . 12 Wheel 17 | . 17 Hover 6 | . 6 Flight 3 | . 3 Storage 14 | . 14 Energy Gun 17 | . 17 Special Weapon 4 | . 4 Special Melee Weapon 6 | . 6 Peak Build Rating 6 | 6 6 Average Rating 5 | 4 5 On Entrance 3 | . 6 Naked Turns . | . . Heaviest Build 14 | 12 14 Greatest Support 20 | 20 20 Greatest Overweight (x) 3 | . 3 Average Overweight (x) . | . . Largest Inventory Capacity 8 | 8 8 Average Capacity 7 | 7 8 Most Carried 7 | 3 7 Average Carried 3 | 1 4 Final Capacity 8 | 8 8 Final Carried 5 | 2 5 Class Distribution -------------------- 100% | Mutant Dominant Class ---------------- Mutant | -10/Materials Resources | -11 -10 ----------- Run | Yrd Mat Matter Collected 335 | 216 119 Remotely . | . . Salvage Created 366 | . 366 Parts 15 | . 15 Haulers Intercepted . | . . Recyclers Shooed . | . . Parts Field Recycled . | . . Retrieved Matter . | . . Parts Self-Destructed . | . . Prevented . | . . Kills | -11 -10 ------- Run | Yrd Mat Combat Hostiles Destroyed 10 | . 10 Guns 10 | . 10 Classes Destroyed 3 | . 3 Watcher 1 | . 1 Swarmer 3 | . 3 Grunt 7 | . 7 Best Kill Streak 5 | . 5 Combat Bots Only 5 | . 5 Max Kills in Single Turn 1 | . 1 Gunslinging . | . . Exploded . | . . Melee . | . . Uniques/NPCs Destroyed . | . . Combat | -11 -10 -------- Run | Yrd Mat Hostile Shots Fired 85 | . 85 Missed 29 | . 29 Damage Taken 961 | . 961 Core 332 | . 332 Absorbed by Shields . | . . Core Remaining (%) 100 | 100 . Volleys Fired 43 | . 43 Largest 2 | . 2 Hottest 100 | . 100 Shots Fired 56 | . 56 Gun 51 | . 51 Cannon . | . . Launcher . | . . Special 5 | . 5 Kinetic . | . . Thermal 56 | . 56 Explosive . | . . Electromagnetic . | . . Robot Hit Streak 15 | . 15 Robot Miss Streak 4 | . 4 Penetration Max . | . . Secondary Targets 3 | . 3 Max Gunslinging Chain 1 | . 1 Shots Hit Robots 36 | . 36 Core Hits 18 | . 18 Critical Kills . | . . Critical Parts Destroyed . | . . Critical Strikes 3 | . 3 Burn 3 | . 3 Melee Attacks 2 | . 2 Impact . | . . Slashing . | . . Piercing . | . . Sneak Attacks . | . . Combat Hostiles . | . . Follow-up Attacks . | . . Damage Inflicted 439 | . 439 Guns 439 | . 439 Cannons . | . . Explosions . | . . Melee . | . . Ramming . | . . Kinetic . | . . Thermal 439 | . 439 Explosive . | . . Electromagnetic . | . . Impact . | . . Slashing . | . . Piercing . | . . Highest Corruption . | . . Average Corruption . | . . Corruption Purged . | . . Corruption Blocked . | . . Overload Shots . | . . Overflow Damage . | . . Projectiles . | . . Explosions . | . . Melee . | . . Knockbacks . | . . Impact . | . . Kinetic . | . . Secondary . | . . Self-Inflicted Damage . | . . Shots . | . . Rammed . | . . Targets Rammed . | . . Kicked . | . . Crushed . | . . Highest Temperature 331 | . 331 Average Temperature 98 | . 98 Received Heat Transfer 201 | . 201 Effects 1 | . 1 Energy Bleed 1 | . 1 Siege Activations . | . . Robots Corrupted . | . . Combat Hostiles . | . . Parts Fried . | . . Impact Corruptions . | . . Robots Melted . | . . Combat Hostiles . | . . Parts Melted 4 | . 4 Heat Transferred 1517 | . 1517 Parts Sabotaged . | . . Parts Stolen . | . . Parts Stripped . | . . Power Chain Reactions . | . . Alert | -11 -10 ------- Run | Yrd Mat Peak Influence 317 | . 317 Initial . | . . Average 127 | . 147 Maximum Alert Level 1 | . 1 Low Security (%) 73 | 100 69 Level 1 26 | . 30 Level 2 . | . . Level 3 . | . . Level 4 . | . . Level 5 . | . . High Security . | . . Max Security . | . . Squads Dispatched 3 | . 3 Investigation 2 | . 2 Extermination . | . . Reinforcement 1 | . 1 Assault . | . . Garrison . | . . Intercept . | . . Searches Triggered . | . . Construction Impeded . | . . Haulers Reinforced . | . . Active Scanning Responses . | . . Cargo Convoy Interrupts . | . . Stealth | -11 -10 --------- Run | Yrd Mat Distress Signals . | . . Communications Jammed . | . . Distress Signals . | . . Times Spotted 17 | . 17 Peak Tracking Total 5 | . 5 Tactical Retreats . | . . Traps | -11 -10 ------- Run | Yrd Mat Traps Triggered 1 | . 1 Indirectly . | . . Trap Hack Attempts . | . . Triggered . | . . Disarmed . | . . Reprogrammed . | . . Reused . | . . Traps Extracted . | . . Installed . | . . Triggered . | . . Machines | -11 -10 ---------- Run | Yrd Mat Machines Disabled . | . . Max in Single Turn . | . . Machines Repaired . | . . Machines Dismantled . | . . Machines Sabotaged . | . . Overloaded Fab Kills . | . . Hacking | -11 -10 --------- Run | Yrd Mat Machines Accessed 4 | . 4 Terminals 4 | . 4 Fabricators . | . . Repair Stations . | . . Recycling Units . | . . Scanalyzers . | . . Garrison Access . | . . Total Hacks 8 | . 8 Successful 3 | . 3 Failed 5 | . 5 Catastrophic 3 | . 3 Database Lockouts . | . . Manual . | . . Terminals 8 | . 8 Fabricators . | . . Repair Stations . | . . Recycling Units . | . . Scanalyzers . | . . Garrison Access . | . . Terminal Hacks 3 | . 3 Robot Analysis 1 | . 1 Prototype ID Bank 1 | . 1 Repair Station Index 1 | . 1 Fabricator Hacks . | . . Repair Station Hacks . | . . Recycling Unit Hacks . | . . Scanalyzer . | . . Garrison Access Hacks . | . . Unauthorized Hacks . | . . Terminals . | . . Fabricators . | . . Repair Stations . | . . Recycling Units . | . . Scanalyzers . | . . Garrison Access . | . . Data Cores Recovered . | . . Used . | . . Hacking Detections 3 | . 3 Full Trace Events 1 | . 1 Feedback Events . | . . Feedback Blocked . | . . Robot Schematics Acquired . | . . Robots Built . | . . Authchips . | . . Time . | . . Total Robot Build Rating . | . . Part Schematics Acquired . | . . Parts Built . | . . Authchips . | . . Time . | . . Total Part Build Rating . | . . Parts Repaired . | . . Time . | . . Parts Recycled . | . . Recycled Matter . | . . Retrieved Matter . | . . Retrieved Components . | . . Parts Scanalyzed . | . . Part Schematics Acquired . | . . Parts Damaged . | . . Bothacking | -11 -10 ------------ Run | Yrd Mat Used RIF Installer . | . . Robots Hacked 1 | . 1 Non-combat . | . . Combat 1 | . 1 Robot Hacks Applied 1 | . 1 parse_system 1 | . 1 Relay Couplers Released . | . . Fabnet Peak Effective % . | . . Robots Rewired . | . . Allies Hacked . | . . Hacks Repelled . | . . Allies | -11 -10 -------- Run | Yrd Mat Total Allies . | . . Largest Group . | . . Highest-Rated Group . | . . Highest-Rated Ally . | . . Total Orders . | . . Ally Attacks . | . . Total Damage . | . . Kills . | . . Allies Corrupted . | . . Allies Melted . | . . Intel | -11 -10 ------- Run | Yrd Mat Robot Analysis Total 1 | . 1 Derelict Logs Recovered . | . . Drone Launches . | . . Drone Recoveries . | . . Exploration | -11 -10 ------------- Run | Yrd Mat Turns Passed 480 | 66 414 Spaces Moved 378 | 66 312 Core 3 | 3 . Treads . | . . Legs . | . . Wheels 311 | 63 248 Hover 40 | . 40 Flight 24 | . 24 Fastest Speed 50 | 50 56 Average Speed 86 | 78 88 Slowest Speed 280 | 80 280 Overloaded Moves . | . . Propulsion Burnouts . | . . Robots Hopped . | . . Cave-ins Triggered 1 | . 1 Exploration Rate (%) 26 | 4 49 Regions Visited 1 Branch Regions . Pre-discovered Areas . | . . Known Exits Taken . | . . Unknown Exits Taken 1 | 1 . Scrap Searched . | . . Spaces Dug 5 | . 5 Terrain Destroyed 5 | . 5 Melee . | . . Projectile 5 | . 5 AOE . | . . Terrain Rammed . | . . Walls Destroyed . | . . Machines Disabled . | . . Actions | -11 -10 --------- Run | Yrd Mat Total 463 | 79 384 Wait 5 | . 5 Move 377 | 65 312 Hop . | . . Pick Up 17 | 8 9 Fast Attach . | . . Attach 10 | 6 4 Detach . | . . Swap 6 | . 6 Drop 3 | . 3 Fire 43 | . 43 Melee 2 | . 2 Ram . | . . Kick . | . . Crush . | . . Escape Stasis . | . . Rewire . | . . Trap . | . . Miscellaneous . | . . Route ------- -11/Scrapyard -10/Materials (discovered 2 exits: [*Mat] / [*Min]) History --------- Turn | Location | Event 17 | -11/Scrapyard | Discovered new exit (range 16) 67 | -11/Scrapyard | Entered Materials 122 | -10/Materials | Discovered new exit (range 13) 235 | -10/Materials | Discovered new exit (range 16) 320 | -10/Materials | Build established: Mutant 335 | -10/Materials | Core integrity fell below 50% 482 | -10/Materials | Crushed by falling debris 482 | -10/Materials | Smashed by cave-in Last Messages --------------- 00395_ Dropped Flight Unit. 00419_ G-34 Mercenary suffers critical hit (Burn). 00425_ Heat Sink melted. 00425_ G-34 Mercenary destroyed. 00433_ Acquired 30 matter. 00435_ G-34 Mercenary destroyed. 00447_ Acquired 15 matter. 00457_ W-16 Scout destroyed. 00457_ K-01 Serf collects debris. 00471_ U-05 Engineer builds a Wall. 00482_ The unstable cave ceiling collapses. 00482_ Crushed by falling debris. [Achievement: Unlikely Earthworm] 00482_ Datajack destroyed. 00482_ System corrupted by crushing effect (+1). 00482_ Mining Laser destroyed. 00482_ System corrupted by crushing effect (+3). 00482_ Hover Unit destroyed. 00482_ System corrupted by crushing effect (+1). Map ----- +----------------------------------------------------+ | # = #????????????????? ?????# "T" #?????? | | # #????????????????? ?????# """ # #???? | | #####+#####????????????????? ?????#+###+#### ##??? | | ????# #?????????????????? ?????# #??? | | ##### #?????????????????????#### #??? | | # #?????????????? #??? | | # #??????????? #??+########### ### #??? | | # #?????????## ##???????????##+### #### | | "" # ########+## #???????????# # | | """ # #???????????#" # | | """ + +???????????#" # | | """ # #???????????#" # | | "" ## ##########+## ????????????#T # = | | ## #????????????# #????????????#" # [%= | | ## #????????????# #????????????#" # | | ## #????????????# #????#########" + = | | ###### #????????????# #????#"""""""# # %#### | | ##=#???????????## ##???#" |" "###### ##?? | | """ ## ############# #####" "##### #?? | | """ # [ % ! %= ### | | """ + ! < =% | | """ # ### | | """ ###+############ ##### ##### #?? | | # #????????# #####??#########???###+###?? | | # """ #?????? ## ###??????????????"" ??? | | # """ #????#!!==[[###@ #???????????? "T" ? | | # """ #????#!!==[[#?####???????????# """ | | * # #????########????????????????# """ | | ##### """ #????????????????????????????# """ | | ????# """ #????????????????????????????# | | ????# """ #????????????????????????????########### | | ????# #??????????????????????????????????????? | | ????# #??????????????????????????????????????? | | ######+####??????????????????????????????????????? | | # #?????????????????????????????????????????? | | # #?????????????????????????????????????????? | | # ###???????????????????????????????????????? | | # #???????????????????????????????????????? | | + ###?????????????????????????????????????? | | # ""#?????????????????????????????????????? | | # T"#?????????????????????????????????????? | | # ""#?????????????????????????????????????? | | # ###?????????????????????????????????????? | | ###### #???????????????????????????????????????? | | ?????# #???????????????????????????????????????? | | ???### #???????????????????????????????????????? | | ???#"" #???????????????????????????????????????? | | ???#"T #???????????????????????????????????????? | | ???#"" #???????????????????????????????????????? | | ???### < #???????????????????????????????????????? | +----------------------------------------------------+ Best States ------------- Heat Dissipation 25 Energy Generation 10 Energy Capacity 250 Matter Stores 300 Matter Capacity 300 Sight Range 16 Terrain Scan Density 10 Evasion (%) 45 Item Schematics ----------------- None Robot Schematics ------------------ None Fabricated ------------ Nothing Alien Tech Used ----------------- None Achievements -------------- Unlikely Earthworm Challenges ------------ None Game ------ Seed NeutronStasisSpiker Manual? 0 Play Time 00:12:22 Cumulative 9.9 hours Start 2024.08.16 @ 23:21:51 End 2024.08.16 @ 23:31:52 Sessions 1 Manual Loads 0 Difficulty Rogue Special Mode None Game No. 7 Rogue 7 Adventurer 0 Explorer 0 Win Type - Total 0 Types 0/0/0/0/0/0/0/0/0 Lore% 1 Gallery% 12 Achievement% 10 Wizard Run 0 Options --------- Layout 1 ASCII 0 Keyboard 0 Movement Mouse Keybinds 0 Fullscreen 1 Font 24/Smallcaps Map View 50x35 Zoom Use 0% Tactical HUD 1 Map Filters NONE Filters NONE Steam 1 RUN: c1de9953-67f4-4499-bbfe-f396a34d87fa